bitfinex/quotes_ETHUSD_20250130
["timestamp","ask_amount","ask_price","bid_price","bid_amount"]
[1738254951734,3.06177,3266.1,3265.3,3.45436512]
[1738254951735,3.06161,3266.3,3265.7,3.86872]
[1738254951990,3.06142,3266.5,3265.7,3.86872]
[1738254952152,3.06142,3266.5,3265.8,0.55]
[1738254952335,0.212,3266.8,3265.8,0.55]
[1738254952542,3.06148,3266.4,3266.0,0.55]
[1738254953084,3.06131,3266.6,3266.0,3.61178]
[1738254953383,3.06139,3266.5,3266.0,0.55]
[1738254956471,3.06121,3266.7,3266.0,0.55]
[1738254956687,0.0075,3266.9,3266.0,0.55]
[1738254956999,3.0,3267.4,3266.5,3.06129]
[1738254957000,3.06056,3267.4,3266.5,3.06129]
[1738254957297,3.06073,3267.2,3266.7,3.06118]
[1738254957587,3.06073,3267.2,3266.7,0.55]
[1738254958447,3.0604,3267.6,3266.9,3.06096]
[1738254958648,3.06004,3268.0,3267.4,0.55]
[1738254959289,3.05981,3268.2,3267.6,0.55]
[1738254959808,3.05979,3268.2,3267.6,0.55]
[1738254960091,3.05979,3268.2,3267.8,0.55]
[1738254960388,5.48662,3268.4,3267.8,0.55]
[1738254960595,6.11855,3268.8,3268.1,0.55]
[1738254960886,3.87146,3269.3,3268.1,0.55]
[1738254960887,3.05932,3268.7,3268.1,0.55]
[1738254961092,3.05947,3268.6,3268.1,0.55]
[1738254961590,0.212,3269.1,3268.3,0.55]
[1738254961591,3.05895,3269.1,3268.3,0.55]
[1738254961795,3.05895,3269.1,3268.6,0.7575]
[1738254961947,3.05907,3269.0,3268.7,0.55]
[1738254962147,0.212,3269.5,3268.6,0.7575]
[1738254962148,3.05922,3268.9,3268.6,0.7575]
[1738254962605,3.05895,3269.1,3268.7,0.55]
[1738254963598,3.05883,3269.3,3268.7,0.55]
[1738254963904,3.05883,3269.3,3268.7,3.60931]
[1738254964255,3.05858,3269.5,3268.9,0.55]
[1738254964475,3.05875,3269.3,3269.0,0.03058691]
[1738254964675,3.05875,3269.3,3268.7,3.05931]
[1738254964676,3.05875,3269.3,3268.7,0.55]
[1738254964909,3.05903,3269.1,3268.7,0.55]
[1738254965412,3.05875,3269.3,3268.7,0.55]
[1738254965763,3.05885,3269.2,3268.7,0.55]
[1738254966123,3.05838,3269.7,3268.9,0.55]
[1738254966414,3.05849,3269.6,3269.0,0.0305849]
[1738254967111,3.1906,3270.4,3269.1,0.55]
[1738254967274,3.1906,3270.4,3269.0,3.0896149]
[1738254967275,3.05826,3269.9,3269.3,0.55]
[1738254967611,3.0584,3269.7,3269.3,0.55]
[1738254967781,3.05826,3269.9,3269.3,0.55]
[1738254967978,3.05829,3269.8,3269.3,0.55]
[1738254968274,3.05826,3269.9,3269.3,0.55]
[1738254968483,3.05831,3269.8,3269.3,0.55]
[1738254968680,3.05826,3269.9,3269.3,0.55]
[1738254968911,3.05841,3269.7,3269.3,0.55]
[1738254969508,3.05797,3270.2,3269.5,0.55]
[1738254969707,3.0576,3270.6,3270.0,3.05809]
[1738254969865,3.0576,3270.6,3270.2,0.55]
[1738254970065,0.015,3271.0,3270.2,0.55]
[1738254970379,3.05774,3270.4,3270.2,0.55]
[1738254970699,3.0577,3270.5,3270.2,0.55]
[1738254970879,3.0577,3270.5,3269.7,0.7584]
[1738254971218,3.05814,3270.0,3269.8,0.55]
[1738254971912,3.05819,3269.9,3269.8,0.55]
[1738254973923,3.05795,3270.2,3269.8,0.55]
[1738254974130,6.11595,3270.2,3269.8,0.55]
[1738254974327,3.05795,3270.2,3269.8,0.55]
[1738254974489,3.05795,3270.2,3269.8,0.986681]
[1738254975428,3.05776,3270.4,3269.8,0.986681]
[1738254975751,3.05784,3270.3,3269.8,0.986681]
[1738254976186,3.05793,3270.2,3269.8,0.986681]
[1738254976387,3.05793,3270.2,3269.8,0.55]
[1738254978639,3.05819,3269.9,3269.8,0.55]
[1738254978845,5.35,3270.5,3270.0,0.55]
[1738254979134,5.35,3270.5,3270.2,0.55]
[1738254979430,5.35,3270.5,3270.2,3.6079]
[1738254979849,5.35,3270.5,3270.4,1.3578]
[1738254981149,3.05745,3270.7,3270.4,1.3578]
[1738254981315,3.05777,3270.4,3270.1,0.7644]
[1738254981513,3.05736,3270.8,3270.2,0.55]
[1738254981841,3.05741,3270.8,3270.2,0.55]
[1738254982050,3.05726,3270.9,3270.4,0.55]
[1738254982344,3.05737,3270.8,3270.4,0.55]
[1738254982515,6.11481,3270.8,3270.4,0.55]
[1738254982703,3.05737,3270.8,3270.4,0.55]
[1738254983209,3.05783,3270.3,3270.1,0.7644]
[1738254983445,3.4576347,3270.4,3269.5,2.14188963]
[1738254983648,3.05836,3269.8,3269.5,2.14188963]
[1738254983848,3.05847,3269.6,3269.5,2.14188963]
[1738254984209,3.05847,3269.6,3269.5,2.69188963]
[1738254984432,3.05836,3269.8,3269.6,0.55]
[1738254984628,3.05836,3269.8,3269.5,1.34488963]
[1738254984840,3.05847,3269.6,3269.5,1.34488963]
[1738254988035,6.85517,3269.6,3269.5,9.63e-06]
[1738254988233,6.86267,3269.6,3269.5,9.63e-06]
[1738254989974,3.86267,3269.6,3269.5,9.63e-06]
[1738254990337,4.07467,3269.6,3269.5,9.63e-06]
[1738254991754,4.08217,3269.6,3269.5,9.63e-06]
[1738254991956,3.87017,3269.6,3269.5,9.63e-06]
[1738254992129,3.07347,3269.6,3269.5,9.63e-06]
[1738254994747,3.84017,3269.6,3269.5,9.63e-06]
[1738254995273,3.87083855,3269.6,3269.5,9.63e-06]
[1738254995628,3.06002,3268.0,3267.4,0.7593]
[1738254995938,3.06021,3267.8,3267.5,0.381988]
[1738254996139,3.06021,3267.8,3267.5,0.55]
[1738254996542,3.06021,3267.8,3267.5,0.22826023]
[1738254996971,3.06025,3267.7,3267.5,0.22826023]
[1738254997168,3.05982,3268.2,3267.5,0.22826023]
[1738254997331,3.06003,3268.0,3267.5,0.22826023]
[1738254997671,3.06003,3268.0,3267.6,0.40480302]
[1738254997974,3.06015,3267.9,3267.7,0.55]
[1738254999061,3.05995,3268.1,3267.7,0.55]
[1738254999270,3.05982,3268.2,3267.7,0.55]
[1738254999476,3.05961,3268.4,3267.8,0.55]
[1738254999772,3.05961,3268.4,3267.7,3.06024]
[1738254999773,3.05978,3268.3,3268.0,0.55]
[1738254999930,3.05982,3268.2,3268.0,0.55]
[1738255000133,3.05961,3268.4,3268.0,0.55]
[1738255000440,3.05923,3268.8,3268.0,0.55]
[1738255000649,3.05933,3268.7,3268.2,0.55]
[1738255000845,0.0075,3268.7,3267.9,1.112124]
[1738255001174,6.11879,3268.7,3268.1,0.55]
[1738255001377,3.05939,3268.7,3268.1,3.60988]
[1738255001876,3.0595,3268.5,3268.1,0.55]
[1738255002175,3.05939,3268.7,3268.2,0.55]
[1738255002377,3.05939,3268.7,3268.4,0.55]
[1738255002678,3.05943,3268.6,3268.4,0.55]
[1738255003480,3.05943,3268.6,3268.3,0.360987]
[1738255003481,3.05954,3268.5,3267.9,3.81116]
[1738255003633,3.05922,3268.8,3267.5,0.8218]
[1738255003833,3.06015,3267.9,3267.5,0.8218]
[1738255004033,3.05991,3268.1,3267.5,3.88224]
[1738255004280,3.05991,3268.1,3267.6,0.388224]
[1738255004583,3.05991,3268.1,3267.7,0.55]
[1738255004875,3.05991,3268.1,3267.6,0.55]
[1738255004876,3.05997,3268.0,3267.6,0.55]
[1738255005079,3.05995,3268.1,3267.6,0.55]
[1738255005743,3.05989,3268.1,3267.6,0.55]
[1738255006962,3.05998,3268.0,3267.6,0.55]
[1738255007174,3.06016,3267.9,3267.6,0.55]
[1738255008080,3.05996,3268.1,3267.6,0.55]
[1738255008243,3.05996,3268.1,3267.6,0.993224]
[1738255008633,3.05982,3268.2,3267.6,0.993224]
[1738255008868,3.0601,3267.9,3267.6,0.55]
[1738255009246,3.06003,3268.0,3267.6,0.55]
[1738255009445,3.0601,3267.9,3267.6,0.55]
[1738255009674,3.06059,3267.4,3267.0,0.8312]
[1738255010099,3.06077,3267.2,3267.0,0.8312]
[1738255010272,3.06081,3267.1,3267.0,0.8312]
[1738255010463,3.06107,3266.9,3266.3,0.8312]
[1738255010705,3.06121,3266.7,3266.4,0.389278]
[1738255011064,3.06121,3266.7,3266.4,0.60199787]
[1738255011300,3.06138,3266.5,3266.3,0.8312]
[1738255012089,3.06138,3266.5,3266.4,0.55]
[1738255012290,6.12284,3266.5,3266.3,0.8312]
[1738255012484,3.06138,3266.5,3266.3,0.8312]
[1738255012816,3.06138,3266.5,3265.5,3.18274411]
[1738255012817,3.4576347,3266.6,3265.5,3.97304411]
[1738255012979,3.06162,3266.3,3265.6,3.45946441]
[1738255013161,3.06184,3266.1,3265.7,0.55]
[1738255013361,3.06197,3265.9,3265.5,0.7903]
[1738255014105,3.06204,3265.8,3265.6,0.55]
[1738255014315,3.06179,3266.1,3265.5,0.7903]
[1738255014461,3.06164,3266.3,3265.6,0.55]
[1738255014662,3.06167,3266.2,3265.8,0.55]
[1738255015595,3.06167,3266.2,3265.7,0.55]
[1738255015942,3.06176,3266.1,3265.7,0.55]
[1738255016526,0.7819,3266.9,3265.7,0.55]
[1738255016666,0.7819,3266.9,3264.9,6.7088883]
[1738255016667,3.06131,3266.6,3266.0,0.55]
[1738255016869,3.06142,3266.5,3266.0,0.55]
[1738255017226,3.06131,3266.6,3266.0,0.55]
[1738255017227,3.06154,3266.4,3266.0,0.55]
[1738255017518,3.06183,3266.1,3265.8,0.7994]
[1738255017811,3.06194,3265.9,3265.4,0.7994]
[1738255018010,3.06195,3265.9,3265.4,0.7994]
[1738255018215,3.06195,3265.9,3265.4,3.86179]
[1738255018516,3.06195,3265.9,3265.4,4.31009807]
[1738255018868,3.06195,3265.9,3265.5,0.55]
[1738255019789,3.06212,3265.8,3265.5,0.55]
[1738255019997,3.06214,3265.7,3265.5,0.55]
[1738255020175,3.06219,3265.7,3265.5,0.55]
[1738255020572,3.06199,3265.9,3265.5,0.55]
[1738255020831,3.06206,3265.8,3265.5,0.55]
[1738255021034,3.06222,3265.6,3265.0,0.7984]
[1738255021332,3.06237,3265.5,3265.0,0.7984]
[1738255021534,3.06278,3265.0,3264.5,0.7984]
[1738255022130,3.06267,3265.2,3264.5,3.86165]
[1738255022438,3.06256,3265.3,3265.0,0.55]
[1738255022583,3.06266,3265.2,3265.0,0.55]
[1738255022792,6.12491,3265.4,3265.0,0.55]
[1738255022985,3.06243,3265.4,3265.0,0.55]
[1738255023233,3.06258,3265.3,3265.0,0.55]
[1738255023614,3.06243,3265.4,3265.0,0.55]
[1738255023897,3.06262,3265.2,3264.5,0.7984]
[1738255024103,3.06262,3265.2,3264.5,3.86156]
[1738255024328,3.06262,3265.2,3264.5,4.41156]
[1738255024636,3.0625,3265.3,3265.0,0.55]
[1738255024931,3.06208,3265.8,3265.2,0.55]
[1738255025237,3.06184,3266.0,3265.4,0.55]
[1738255025736,3.06203,3265.8,3265.4,0.55]
[1738255025936,3.06184,3266.0,3265.4,3.61235]
[1738255026132,3.06199,3265.9,3265.6,0.55]
[1738255027012,3.06184,3266.0,3265.6,0.55]
[1738255027207,3.06194,3265.9,3265.6,0.55]
[1738255028092,3.27347,3266.5,3265.5,0.8298]
[1738255028093,3.06216,3265.7,3265.5,0.8298]
[1738255028548,3.06196,3265.9,3265.6,0.55]
[1738255028866,3.06204,3265.8,3265.6,0.55]
[1738255029432,3.06189,3266.0,3265.6,0.55]
[1738255029688,3.06161,3266.3,3265.6,4.05636]
[1738255029825,3.0617,3266.2,3265.6,4.05636]
[1738255030469,3.0617,3266.2,3265.6,7.1185]
[1738255030686,3.0617,3266.2,3265.8,0.55]
[1738255030846,3.0615,3266.4,3265.8,3.61203]
[1738255031184,3.06158,3266.3,3265.8,4.323869]
[1738255031529,3.84887,3266.9,3266.2,0.55]
[1738255031729,3.06107,3266.9,3266.5,0.55]
[1738255031929,3.06107,3266.9,3266.5,0.58061104]
[1738255032132,3.0608,3267.2,3266.5,3.61131]
[1738255032133,6.1216,3267.2,3266.5,3.61131]
[1738255032339,3.06086,3267.1,3266.5,3.61131]
[1738255032789,3.0608,3267.2,3266.7,0.55]
[1738255033089,3.06091,3267.1,3266.8,0.8155]
[1738255033528,3.061,3266.9,3266.8,0.8155]
[1738255033839,3.06098,3267.0,3266.8,0.8155]
[1738255034745,3.0611,3266.8,3266.4,0.7762]
[1738255034944,6.12195,3267.0,3266.4,0.7762]
[1738255035139,3.06102,3266.9,3266.6,0.55]
[1738255035541,3.06097,3267.0,3266.6,0.55]
[1738255036146,3.06145,3266.5,3266.1,0.8236]
[1738255036387,3.06106,3266.9,3266.1,0.8236]
[1738255036541,3.06106,3266.9,3266.2,3.61159]
[1738255036542,3.06114,3266.8,3266.2,3.61159]
[1738255037004,3.06144,3266.5,3266.2,0.55]
[1738255037291,3.06144,3266.5,3265.6,3.06217]
[1738255037292,3.06213,3265.7,3264.9,3.1511936]
[1738255037588,3.06235,3265.5,3265.0,3.88634]
[1738255037794,3.06213,3265.7,3265.1,0.39747236]
[1738255037992,3.06213,3265.7,3265.2,0.55]
[1738255038388,3.06236,3265.5,3265.0,0.8236]
[1738255038601,3.06253,3265.3,3265.0,0.8236]
[1738255038805,3.06253,3265.3,3265.1,0.22828771]
[1738255039172,3.06253,3265.3,3265.1,0.21840512]
[1738255039374,3.06259,3265.2,3265.1,0.21840512]
[1738255039686,3.06233,3265.5,3265.1,0.21840512]
[1738255040211,6.4576347,3265.9,3265.2,1.375]
[1738255040212,6.06198,3265.9,3265.2,1.375]
[1738255040362,3.06257,3265.3,3264.9,0.9133836]
[1738255040963,3.06257,3265.3,3265.0,0.55]
[1738255041265,3.06269,3265.1,3265.0,0.55]
[1738255042103,3.06257,3265.3,3265.0,0.55]
[1738255042315,3.06278,3265.0,3264.9,0.0883836]
[1738255043811,3.06249,3265.4,3264.9,0.0883836]
[1738255043996,3.06224,3265.6,3265.0,1.3235]
[1738255044200,3.06242,3265.4,3265.0,1.3235]
[1738255044398,3.06213,3265.7,3265.0,1.3235]
[1738255044584,3.06219,3265.7,3265.2,0.55]
[1738255044812,8.41207,3265.8,3265.2,0.55]
[1738255044813,5.35,3265.8,3265.2,0.55]
[1738255044963,5.35,3265.8,3265.1,0.55]
[1738255045167,3.06213,3265.7,3265.1,0.55]
[1738255045378,3.06229,3265.6,3265.1,0.99746836]
[1738255046417,3.06213,3265.7,3265.1,0.99746836]
[1738255046707,5.35,3265.8,3265.1,0.99746836]
[1738255047075,5.35,3265.8,3265.1,4.06008836]
[1738255047513,5.35,3265.8,3265.3,0.55]
[1738255047714,5.35,3265.8,3265.3,1.32032713]
[1738255048094,8.41206,3265.8,3265.3,1.32032713]
[1738255048414,8.41206,3265.8,3265.2,0.55]
[1738255048738,3.06213,3265.7,3265.2,0.55]
[1738255049037,5.35,3265.8,3265.2,0.55]
[1738255049211,8.41212,3265.8,3265.2,0.55]
[1738255049801,5.35,3265.8,3265.2,3.61259]
[1738255050014,5.35,3265.8,3265.3,0.74289503]
[1738255050538,5.35,3265.8,3265.3,0.71227284]
[1738255050916,8.41203,3265.8,3265.3,0.71227284]
[1738255051235,8.41203,3265.8,3265.1,3.61261]
[1738255051443,3.06213,3265.7,3265.1,3.61261]
[1738255051643,3.06213,3265.7,3265.1,0.55]
[1738255052809,3.06213,3265.7,3265.1,3.61268]
[1738255053014,3.06213,3265.7,3265.1,3.84136132]
[1738255053239,3.06213,3265.7,3265.1,4.61797181]
[1738255053540,3.06213,3265.7,3265.1,1.55529181]
[1738255053937,3.06213,3265.7,3265.1,0.77868132]
[1738255054147,5.35,3265.8,3265.1,0.22868132]
[1738255054148,3.06257,3265.3,3265.1,0.22868132]
[1738255054445,3.06259,3265.2,3265.1,0.22868132]
[1738255055065,3.06259,3265.2,3264.9,0.0883836]
[1738255055198,3.06278,3265.0,3264.9,0.0883836]
[1738255056297,3.09344855,3265.0,3264.9,0.0883836]
[1738255057136,3.06278,3265.0,3264.9,0.0883836]
[1738255057349,3.09344855,3265.0,3264.9,0.0883836]
[1738255057714,3.10094855,3265.0,3264.9,0.0883836]
[1738255058395,3.06278,3265.0,3264.9,0.0883836]
[1738255058633,5.35,3265.1,3264.9,0.0883836]
[1738255058814,5.35,3265.1,3264.9,0.8931836]
[1738255059714,4.08917,3265.7,3265.0,0.55]
[1738255059929,3.06217,3265.7,3265.0,1.00061336]
[1738255060128,3.06228,3265.6,3265.0,4.06337336]
[1738255061206,3.06228,3265.6,3265.0,1.00061336]
[1738255062560,8.41207,3265.8,3265.0,4.06331336]
[1738255062860,3.06222,3265.6,3265.0,3.51331336]
[1738255063439,3.06222,3265.6,3265.1,0.55]
[1738255064208,3.06233,3265.5,3265.1,0.55]
[1738255064551,3.06222,3265.6,3265.1,0.55]
[1738255065922,6.12453,3265.6,3265.1,0.55]
[1738255066124,3.06224,3265.6,3265.1,0.55]
[1738255066337,6.12454,3265.6,3265.1,0.55]
[1738255066635,3.06224,3265.6,3265.1,0.55]
[1738255067473,3.06232,3265.5,3265.1,0.55]
[1738255068030,3.06248,3265.4,3265.0,0.2289332]
[1738255068233,3.06267,3265.2,3265.0,0.2289332]
[1738255068428,3.06269,3265.1,3265.0,0.2289332]
[1738255069022,0.806,3265.4,3265.0,0.2289332]
[1738255069370,3.06232,3265.5,3265.0,0.2289332]
[1738255069525,3.06217,3265.7,3265.0,0.55]
[1738255069726,5.35,3265.8,3265.2,3.61257]
[1738255069939,11.47397,3265.9,3265.2,3.61257]
[1738255070139,8.41195,3265.9,3265.2,0.55]
[1738255070576,8.41195,3265.9,3265.2,3.61257]
[1738255070577,3.06206,3265.8,3265.2,3.61257]
[1738255071689,5.35,3265.9,3265.4,0.55]
[1738255071869,8.412,3265.9,3265.4,0.55]
[1738255072055,3.0621,3265.8,3265.3,0.55]
[1738255072471,3.06214,3265.7,3265.2,0.55]
[1738255073075,3.06214,3265.7,3265.2,0.83630509]
[1738255073443,3.07,3265.3,3265.2,0.28630509]
[1738255073648,3.8415,3265.3,3265.2,0.28630509]
[1738255074288,3.834,3265.3,3265.2,0.28630509]
[1738255074448,3.06278,3265.0,3264.4,3.06331]
[1738255075178,3.06277,3265.1,3264.3,0.51552181]
[1738255075372,3.06277,3265.1,3264.5,3.06322]
[1738255075689,3.06269,3265.1,3264.8,0.8282]
[1738255075891,6.12547,3265.1,3264.8,0.8282]
[1738255076388,3.06278,3265.0,3264.9,0.6383836]
[1738255080348,3.06259,3265.2,3264.9,0.6383836]
[1738255080883,3.06276,3265.1,3264.9,0.6383836]
[1738255081286,3.06278,3265.0,3264.9,0.0883836]
[1738255089631,5.35,3265.1,3264.9,0.8452836]
[1738255090294,8.41274,3265.1,3264.9,0.8452836]
[1738255090631,5.35,3265.1,3264.9,0.8452836]
[1738255090797,3.06271,3265.1,3264.9,0.8452836]
[1738255090988,3.06259,3265.2,3265.0,0.55]
[1738255091340,5.35,3265.5,3265.0,3.61274]
[1738255091525,8.41233,3265.5,3265.2,0.55]
[1738255091732,3.0625,3265.3,3264.9,0.8452836]
[1738255091898,3.06278,3265.0,3264.9,0.0883836]
[1738255096753,3.06269,3265.1,3264.9,0.0883836]
[1738255096953,3.06278,3265.0,3264.9,0.0883836]
[1738255097735,3.06268,3265.2,3264.9,0.0883836]
[1738255097933,3.06269,3265.1,3264.9,0.0883836]
[1738255099331,3.0627,3265.1,3264.9,0.0883836]
[1738255099547,5.35,3265.5,3265.0,0.55]
[1738255099711,3.06245,3265.4,3265.0,0.55]
[1738255100765,3.06252,3265.3,3265.0,0.55]
[1738255100966,3.0626,3265.2,3265.0,0.55]
[1738255101335,3.06272,3265.1,3264.9,0.0883836]
[1738255102072,3.06278,3265.0,3264.9,0.0883836]
[1738255104963,3.06247,3265.4,3265.0,0.55]
[1738255105830,8.41233,3265.5,3265.0,0.55]
[1738255106435,5.35,3265.5,3265.0,0.99112343]
[1738255106765,5.35,3265.5,3265.2,0.37734824]
[1738255107063,5.35,3265.5,3265.2,3.43987824]
[1738255107267,5.35,3265.5,3265.2,3.47050102]
[1738255107869,5.35,3265.5,3265.2,0.40797102]
[1738255108022,5.35,3265.5,3265.3,0.22949891]
[1738255108624,3.06185,3266.0,3265.4,0.7984]
[1738255108932,3.06185,3266.0,3265.5,0.55]
[1738255108933,3.06195,3265.9,3265.5,0.55]
[1738255109882,3.06213,3265.7,3265.5,0.55]
[1738255110369,3.06213,3265.7,3265.1,0.7877]
[1738255110574,3.06213,3265.7,3264.8,3.06292]
[1738255110575,2.88706499,3265.6,3264.8,0.8119]
[1738255110734,3.06278,3265.0,3264.4,0.8119]
[1738255110939,6.67437644,3265.0,3264.4,0.8119]
[1738255111379,6.67437644,3265.0,3264.5,0.45855536]
[1738255112429,6.67437644,3265.0,3264.2,3.61352]
[1738255112954,6.67437644,3265.0,3264.2,0.55]
[1738255113368,6.67437644,3265.0,3264.3,0.28660549]
[1738255113528,3.81798,3265.0,3264.3,0.5158873]
[1738255113873,3.81798,3265.0,3264.3,0.97447152]
[1738255114838,3.81798,3265.0,3264.4,0.45858422]
[1738255115438,3.81798,3265.0,3264.4,0.68786603]
[1738255115641,3.06278,3265.0,3264.4,0.68786603]
[1738255116240,3.06278,3265.0,3264.5,0.45858422]
[1738255116437,3.07028,3265.0,3264.5,0.45858422]
[1738255116654,5.95734499,3265.0,3264.5,0.45858422]
[1738255116979,5.92667644,3265.0,3264.5,0.45858422]
[1738255117343,5.92667644,3265.0,3264.4,0.22928181]
[1738255117686,5.92667644,3265.0,3264.2,0.55]
[1738255117864,3.07028,3265.0,3264.2,0.55]
[1738255118743,3.07028,3265.0,3264.3,0.28664328]
[1738255118945,3.07028,3265.0,3264.3,0.97457476]
[1738255120291,3.07028,3265.0,3264.3,0.68793148]
[1738255120463,3.07028,3265.0,3264.4,0.68793148]
[1738255120644,3.06278,3265.0,3264.7,0.7713]
[1738255121575,3.06244,3265.4,3265.0,0.55]
[1738255121781,3.06233,3265.5,3265.0,3.61275]
[1738255121936,3.06233,3265.5,3265.0,0.55]
[1738255122390,5.35,3265.6,3265.0,1.22641436]
[1738255122598,5.35,3265.6,3265.3,3.61243]
[1738255122820,5.35,3265.6,3265.3,0.55]
[1738255122972,5.35,3265.6,3265.2,0.55]
[1738255123618,5.35,3265.6,3265.2,3.61258]
[1738255124926,8.41222,3265.6,3265.2,0.55]
[1738255125714,0.7553,3265.5,3264.9,0.0883836]
[1738255125877,3.06255,3265.3,3264.9,0.0883836]
[1738255126068,3.06235,3265.5,3265.0,0.55]
[1738255126473,3.06252,3265.3,3265.0,0.55]
[1738255126698,3.06252,3265.3,3265.0,0.77914003]
[1738255128421,3.06252,3265.3,3265.0,0.55]
[1738255129921,3.06263,3265.2,3264.9,0.0883836]
[1738255130131,3.06278,3265.0,3264.9,0.0883836]
[1738255130539,3.09344855,3265.0,3264.9,0.0883836]
[1738255130704,3.06278,3265.0,3264.9,0.0883836]
[1738255131426,3.07028,3265.0,3264.9,0.0883836]
[1738255132153,3.06278,3265.0,3264.9,0.0883836]
[1738255133543,5.35,3265.1,3264.9,0.0883836]
[1738255133752,5.35,3265.1,3265.0,0.55]
[1738255135045,5.35,3265.1,3264.9,0.0883836]
[1738255135202,3.06278,3265.0,3264.9,0.0883836]
[1738255136359,3.06269,3265.2,3264.9,0.0883836]
[1738255136651,3.06269,3265.2,3265.0,0.55]
[1738255138102,3.06269,3265.1,3265.0,0.55]
[1738255138501,3.06269,3265.2,3265.0,0.55]
[1738255138909,6.12537,3265.2,3265.0,0.55]
[1738255139112,3.06267,3265.2,3265.0,0.55]
[1738255140033,8.41242,3265.4,3265.0,0.55]
[1738255140357,3.06253,3265.3,3265.0,0.55]
[1738255140720,8.41206,3265.8,3265.2,0.55]
[1738255140930,3.06227,3265.6,3265.2,0.55]
[1738255141487,3.06233,3265.5,3265.2,0.55]
[1738255141749,3.06241,3265.4,3265.2,0.55]
[1738255141939,6.12455,3265.6,3265.2,0.55]
[1738255142462,8.41207,3265.8,3265.2,0.55]
[1738255142761,5.35,3265.8,3265.4,3.61234]
[1738255142914,8.41206,3265.8,3265.4,0.55]
[1738255143559,5.35,3265.8,3265.4,0.55]
[1738255144261,3.06205,3265.8,3265.4,0.55]
[1738255145562,3.06248,3265.4,3264.9,0.0883836]
[1738255146061,3.06251,3265.3,3265.0,0.55]
[1738255146214,0.7722,3265.7,3264.9,0.0883836]
[1738255146215,3.06261,3265.2,3264.9,0.0883836]
[1738255146417,3.06258,3265.3,3264.9,0.0883836]
[1738255146658,3.06266,3265.2,3264.9,0.0883836]
[1738255146824,3.06266,3265.2,3265.0,0.55]
[1738255147212,3.06266,3265.2,3264.9,0.0883836]
[1738255147854,3.06266,3265.2,3265.0,0.55]
[1738255148061,3.06244,3265.4,3265.0,0.55]
[1738255148230,6.12494,3265.4,3265.0,0.55]
[1738255148562,3.06244,3265.4,3265.0,0.55]
[1738255148779,0.8089,3266.4,3265.2,0.55]
[1738255149069,0.8089,3267.0,3266.6,3.06123]
[1738255149270,3.06084,3267.1,3266.6,0.55]
[1738255149465,3.06084,3267.1,3266.6,3.61128]
[1738255149680,3.06097,3267.0,3266.5,0.55]
[1738255150016,2.427,3267.4,3266.3,1.39521107]
[1738255150266,5.48754,3267.4,3266.8,3.06102]
[1738255150473,3.06054,3267.4,3267.0,0.7735]
[1738255150635,3.06071,3267.3,3267.1,0.55]
[1738255150821,3.06072,3267.2,3267.1,0.55]
[1738255151234,3.06054,3267.4,3267.1,0.55]
[1738255151429,3.06069,3267.3,3266.9,0.55]
[1738255151720,3.06079,3267.2,3266.9,0.55]
[1738255152414,6.1212,3267.4,3266.9,0.55]
[1738255152620,3.06059,3267.4,3266.9,0.55]
[1738255152837,8.41039,3267.6,3267.1,0.55]
[1738255153061,5.35,3267.6,3267.5,0.8198]
[1738255153274,2.39582146,3267.9,3267.5,1.3698]
[1738255153567,3.06002,3268.0,3267.5,1.3698]
[1738255153753,3.06002,3268.0,3267.5,4.43023]
[1738255154058,3.06017,3267.8,3267.5,1.3698]
[1738255154764,3.06002,3268.0,3267.5,1.3698]
[1738255154929,3.05982,3268.2,3267.6,3.06027]
[1738255155118,3.05982,3268.2,3267.8,0.55]
[1738255155563,5.35,3268.5,3268.1,0.55]
[1738255155772,3.05951,3268.5,3268.1,0.55]
[1738255156075,3.05962,3268.4,3268.0,0.55]
[1738255156362,3.05962,3268.4,3267.8,3.61015]
[1738255156583,3.05951,3268.5,3268.0,0.55]
[1738255156726,2.85639644,3268.9,3268.0,0.55]
[1738255156921,3.0595,3268.5,3268.0,0.55]
[1738255157527,3.05932,3268.7,3268.2,0.55]
[1738255157729,3.05915,3268.9,3268.2,3.60972]
[1738255157923,3.05915,3268.9,3268.3,3.05968]
[1738255158265,3.05949,3268.6,3268.3,0.55]
[1738255158478,3.0596,3268.4,3268.3,0.55]
[1738255158691,3.05949,3268.6,3268.2,0.55]
[1738255159124,3.05953,3268.5,3268.2,0.55]
[1738255161262,3.0596,3268.4,3268.2,0.55]
[1738255162928,3.05985,3268.2,3267.7,0.7858]
[1738255163165,3.05985,3268.2,3267.7,1.53872907]
[1738255163770,3.05962,3268.4,3267.8,0.55]
[1738255163978,3.05944,3268.6,3268.0,3.05994]
[1738255164413,3.05965,3268.4,3267.8,3.61014]
[1738255165304,3.05969,3268.3,3267.8,3.61014]
[1738255165509,3.05965,3268.4,3267.9,0.439594]
[1738255165970,3.05965,3268.4,3267.7,0.7858]
[1738255166171,3.0598,3268.2,3267.7,0.7858]
[1738255166502,3.05978,3268.3,3267.8,0.55]
[1738255167014,3.05965,3268.4,3267.8,0.55]
[1738255167319,3.82579644,3268.9,3267.8,0.55]